bitfinex/quotes_SOLUSD_20250722
["timestamp","ask_amount","ask_price","bid_price","bid_amount"]
[1753205709747,0.06,201.28,201.27,118.51701919]
[1753205710561,1e-08,201.28,201.27,126.78971919]
[1753205710966,1e-08,201.28,201.27,131.75816953]
[1753205711180,1e-08,201.28,201.27,131.61600796]
[1753205711475,1e-08,201.28,201.27,168.29600796]
[1753205711660,1e-08,201.28,201.27,168.43816953]
[1753205712378,0.06,201.29,201.28,72.54468397]
[1753205712552,0.06,201.29,201.28,88.23485762]
[1753205712751,0.06,201.29,201.28,62.73167796]
[1753205712952,0.06,201.29,201.28,123.83988145]
[1753205713165,0.06,201.29,201.28,123.34306111]
[1753205713368,0.06,201.29,201.28,154.41485762]
[1753205713559,0.06,201.29,201.28,155.05485762]
[1753205714377,0.06,201.29,201.28,62.23485762]
[1753205714681,0.06,201.29,201.28,103.88306111]
[1753205714849,5.64548984,201.39,201.31,56.08]
[1753205715053,5.64548984,201.39,201.34,15.05017365]
[1753205715054,18.05921445,201.39,201.34,15.05017365]
[1753205715278,0.68,201.38,201.33,15.05017365]
[1753205715466,15.73017365,201.37,201.31,71.13017365]
[1753205715671,0.68,201.37,201.33,15.05017365]
[1753205715870,4.96548984,201.39,201.35,15.05017365]
[1753205716072,5.64548984,201.39,201.32,16.78468397]
[1753205716259,0.2,201.41,201.37,15.05017365]
[1753205716585,0.2,201.41,201.4,15.05017365]
[1753205716797,0.2,201.41,201.39,15.05017365]
[1753205717166,0.2,201.41,201.39,65.9154239]
[1753205717370,0.2,201.41,201.4,9.9354239]
[1753205718371,5.16499677,201.41,201.4,9.9354239]
[1753205718555,5.16499677,201.41,201.4,65.9154239]
[1753205718556,0.2,201.41,201.4,65.9154239]
[1753205718878,5.84499677,201.41,201.4,55.98]
[1753205719483,5.16499677,201.41,201.4,65.9154239]
[1753205719777,0.2,201.41,201.4,65.9154239]
[1753205720979,0.2,201.41,201.4,83.83663219]
[1753205721182,0.2,201.41,201.4,88.80187548]
[1753205721346,0.2,201.43,201.42,72.76468397]
[1753205721554,0.2,201.43,201.42,149.73874446]
[1753205721752,0.06,201.47,201.46,0.14216157]
[1753205721975,0.06,201.47,201.46,63.99864589]
[1753205722185,0.06,201.47,201.46,64.23864589]
[1753205722494,0.06,201.47,201.46,54.30322199]
[1753205722650,0.06,201.47,201.46,70.39524589]
[1753205722845,0.06,201.47,201.46,63.99864589]
[1753205723049,0.06,201.47,201.46,47.07180035]
[1753205723250,0.06,201.47,201.46,46.5754239]
[1753205723561,0.06,201.47,201.45,36.64]
[1753205723771,0.06,201.47,201.46,9.9354239]
[1753205723958,0.68,201.46,201.43,9.9354239]
[1753205724300,0.06,201.47,201.45,9.9354239]
[1753205725377,0.74,201.47,201.44,9.9354239]
[1753205725563,9.9354239,201.45,201.39,9.9354239]
[1753205725884,10.6154239,201.44,201.38,9.9354239]
[1753205726083,9.9354239,201.42,201.36,46.5554239]
[1753205726298,0.68,201.43,201.36,46.5554239]
[1753205726299,0.68,201.43,201.41,9.9354239]
[1753205726591,0.06,201.47,201.42,9.9354239]
[1753205726804,0.06,201.47,201.45,9.9354239]
[1753205727162,0.74,201.47,201.44,9.9354239]
[1753205727689,4.96376451,201.46,201.44,9.9354239]
[1753205727856,0.74,201.47,201.44,9.9354239]
[1753205728280,5.70359842,201.47,201.44,9.9354239]
[1753205728803,5.02359842,201.47,201.43,9.9354239]
[1753205728984,9.9354239,201.45,201.38,9.9354239]
[1753205729183,0.68,201.44,201.37,36.6]
[1753205729574,0.68,201.44,201.39,9.9354239]
[1753205729774,4.96450379,201.43,201.39,9.9354239]
[1753205729996,5.64450379,201.43,201.39,9.9354239]
[1753205730195,0.68,201.42,201.39,9.9354239]
[1753205730405,0.68,201.42,201.39,65.9154239]
[1753205730580,0.68,201.42,201.39,55.98]
[1753205730905,0.68,201.41,201.39,55.98]
[1753205732097,4.96475027,201.42,201.39,55.98]
[1753205732617,0.68,201.41,201.32,65.9154239]
[1753205732900,0.68,201.41,201.37,9.9354239]
[1753205733288,26.68,201.45,201.39,9.9354239]
[1753205733496,26.68,201.45,201.4,9.9354239]
[1753205733682,0.68,201.45,201.41,9.9354239]
[1753205733892,4.96376451,201.46,201.42,9.9354239]
[1753205734086,0.06,201.47,201.42,9.9354239]
[1753205734087,5.02351814,201.47,201.42,9.9354239]
[1753205734289,0.68,201.46,201.43,9.9354239]
[1753205734499,5.02351814,201.47,201.45,9.9354239]
[1753205734500,0.06,201.47,201.45,9.9354239]
[1753205734683,0.06,201.47,201.46,9.9354239]
[1753205736173,0.06,201.47,201.44,9.9354239]
[1753205736408,0.74,201.47,201.43,9.9354239]
[1753205736604,0.68,201.46,201.4,9.9354239]
[1753205736904,10.6154239,201.46,201.4,9.9354239]
[1753205737306,10.6154239,201.46,201.39,29.76]
[1753205737307,0.68,201.46,201.41,9.9354239]
[1753205737502,9.9954239,201.47,201.41,9.9354239]
[1753205737707,0.68,201.45,201.41,9.9354239]
[1753205737879,0.68,201.44,201.4,9.9354239]
[1753205738080,0.68,201.44,201.41,9.9354239]
[1753205738275,0.06,201.47,201.43,9.9354239]
[1753205738605,0.06,201.47,201.44,9.9354239]
[1753205739508,0.68,201.46,201.39,29.76]
[1753205739684,0.68,201.46,201.41,9.9354239]
[1753205739879,0.68,201.46,201.4,9.9354239]
[1753205740689,4.96401092,201.45,201.4,9.9354239]
[1753205741012,0.68,201.44,201.4,9.9354239]
[1753205741590,4.96401092,201.45,201.41,9.9354239]
[1753205741997,5.64401092,201.45,201.41,9.9354239]
[1753205742303,5.64401092,201.45,201.41,65.9154239]
[1753205742517,0.06,201.47,201.44,9.9354239]
[1753205742690,0.06,201.47,201.46,9.9354239]
[1753205743412,0.06,201.47,201.46,10.1754239]
[1753205743582,0.06,201.47,201.46,56.72010787]
[1753205744823,0.06,201.47,201.46,61.82603395]
[1753205744988,0.06,201.5,201.49,46.54468397]
[1753205745321,0.06,201.5,201.49,39.6954239]
[1753205745619,0.06,201.5,201.49,9.9354239]
[1753205745791,0.06,201.5,201.47,9.9354239]
[1753205745988,0.68,201.49,201.45,9.9354239]
[1753205746189,0.68,201.49,201.37,1.5417]
[1753205746190,9.9354239,201.49,201.37,1.5417]
[1753205746389,9.9354239,201.47,201.41,9.9354239]
[1753205746606,10.6154239,201.46,201.37,29.76]
[1753205746847,14.89943482,201.45,201.38,9.9354239]
[1753205747005,9.9354239,201.43,201.34,0.03]
[1753205747192,9.9354239,201.43,201.36,9.9354239]
[1753205747387,0.7,201.42,201.36,9.9354239]
[1753205747690,0.7,201.43,201.38,9.9354239]
[1753205747895,0.7,201.43,201.39,9.9654239]
[1753205748487,2.223,201.47,201.42,9.9354239]
[1753205748692,7.18657595,201.47,201.43,9.9354239]
[1753205749286,5.66357595,201.47,201.43,9.9354239]
[1753205749488,0.7,201.47,201.43,9.9354239]
[1753205749800,5.02301184,201.5,201.44,9.9354239]
[1753205750193,0.7,201.49,201.44,9.9354239]
[1753205750419,0.7,201.48,201.44,9.9354239]
[1753205750616,0.7,201.48,201.43,9.9354239]
[1753205750995,0.06,201.5,201.45,9.9354239]
[1753205751324,0.76,201.5,201.46,9.9354239]
[1753205751695,5.7228559,201.5,201.46,9.9354239]
[1753205751897,0.76,201.5,201.46,9.9354239]
[1753205752303,0.06,201.5,201.49,9.9354239]
[1753205752798,0.06,201.5,201.49,14.9054239]
[1753205752994,0.06,201.5,201.49,9.9354239]
[1753205753200,0.06,201.5,201.49,39.6954239]
[1753205753400,0.06,201.5,201.49,44.65844936]
[1753205753604,0.06,201.5,201.49,117.78313333]
[1753205754226,0.06,201.5,201.49,95.7954239]
[1753205756100,0.06,201.5,201.49,100.75844936]
[1753205756505,0.06,201.5,201.49,61.68313333]
[1753205756859,0.06,201.5,201.49,117.78313333]
[1753205757133,0.06,201.5,201.49,117.9252949]
[1753205757592,0.06,201.51,201.5,21.89684554]
[1753205757794,0.06,201.51,201.5,62.08854735]
[1753205757996,0.06,201.55,201.54,46.68684554]
[1753205758207,0.06,201.55,201.54,113.21844885]
[1753205758436,0.7,201.66,201.56,72.54468397]
[1753205758613,0.7,201.66,201.56,139.07623805]
[1753205758928,1e-08,201.57,201.56,138.96226944]
[1753205759135,0.2,201.67,201.64,34.71933346]
[1753205759419,0.2,201.67,201.66,9.9354239]
[1753205759613,0.2,201.67,201.66,39.6954239]
[1753205760126,0.2,201.67,201.66,29.76]
[1753205760348,5.85859572,201.67,201.61,9.9354239]
[1753205760516,0.9,201.67,201.64,9.9354239]
[1753205760842,0.2,201.67,201.65,0.49590875]
[1753205761026,0.7,201.66,201.55,4.96142891]
[1753205761216,14.89451142,201.65,201.58,9.9354239]
[1753205761418,0.7,201.64,201.58,9.9354239]
[1753205761618,10.6354239,201.64,201.58,9.9354239]
[1753205761917,0.7,201.64,201.6,9.9354239]
[1753205762136,0.7,201.63,201.6,9.9354239]
[1753205762454,4.95908752,201.65,201.61,9.9354239]
[1753205762626,26.0,201.66,201.61,9.9354239]
[1753205762627,0.2,201.67,201.64,9.9354239]
[1753205762816,0.2,201.67,201.66,9.9354239]
[1753205763219,0.2,201.67,201.66,14.94773309]
[1753205763526,0.2,201.67,201.66,61.73241706]
[1753205763722,0.2,201.67,201.66,61.87457863]
[1753205764354,0.2,201.67,201.66,66.84457863]
[1753205764535,0.2,201.67,201.66,87.73241706]
[1753205764716,0.2,201.67,201.66,143.59241706]
[1753205764919,0.2,201.67,201.66,14.94773309]
[1753205765120,0.2,201.67,201.66,61.73241706]
[1753205765318,0.2,201.67,201.66,66.83342024]
[1753205766085,1e-08,201.7,201.69,130.39894554]
[1753205766233,0.06,201.75,201.69,130.39894554]
[1753205766234,0.06,201.75,201.74,46.54468397]
[1753205766432,0.2,201.76,201.75,0.14216157]
[1753205766773,7.29447346,202.01,201.91,26.0]
[1753205766948,7.29447346,202.01,201.88,16.78468397]
[1753205766949,15.64773309,202.0,201.92,29.76]
[1753205767133,5.65054628,202.0,201.96,14.94773309]
[1753205767333,5.65054628,202.0,201.93,44.70773309]
[1753205767334,15.64773309,201.99,201.93,44.70773309]
[1753205767562,26.0,201.94,201.93,45.82468397]
[1753205767763,26.7,201.94,201.93,45.82468397]
[1753205767943,0.7,201.94,201.85,26.0]
[1753205768148,15.64773309,201.98,201.86,17.46468397]
[1753205768344,16.78468397,202.0,201.94,14.94773309]
[1753205768551,0.7,202.03,201.95,14.94773309]
[1753205768870,12.36737954,202.15,201.96,0.68]
[1753205769083,4.94608764,202.18,202.11,14.94773309]
[1753205769423,10.0,202.32,202.02,40.94773309]
[1753205769424,4.94526286,202.22,202.12,0.68]
[1753205769537,4.94475315,202.24,202.14,26.0]
[1753205769728,0.7,202.23,202.17,14.94773309]
[1753205769938,0.7,202.23,202.18,14.94773309]
[1753205770133,14.94773309,202.22,202.15,14.94773309]
[1753205770363,14.94773309,202.22,202.05,26.0]
[1753205770364,14.94773309,202.16,201.95,63.3971]
[1753205770530,26.0,202.1,201.98,16.92684554]
[1753205770736,26.7,202.09,202.08,46.68684554]
[1753205770934,26.7,202.09,202.0,0.4950495]
[1753205770935,0.7,202.09,202.0,0.4950495]
[1753205771175,0.7,202.09,202.01,16.78468397]
[1753205771375,15.44253764,202.11,202.01,0.68]
[1753205771545,0.7,202.13,202.01,26.68]
[1753205771860,0.49480455,202.12,202.02,0.68]
[1753205772062,15.44253764,202.12,202.04,26.0]
[1753205772369,0.49480455,202.12,202.09,26.0]
[1753205772663,19.89441082,202.16,202.09,14.94773309]
[1753205772863,14.94773309,202.15,202.06,16.78468397]
[1753205773038,0.7,202.15,202.09,0.14216157]
[1753205773263,4.94706638,202.14,202.11,14.94773309]
[1753205773552,14.94773309,202.12,202.05,14.94773309]
[1753205773891,14.94773309,202.12,202.0,0.68]
[1753205773892,14.94773309,202.09,202.0,0.68]
[1753205774067,0.7,202.11,202.0,0.68]
[1753205774068,14.94773309,202.07,202.0,14.94773309]
[1753205774274,14.94773309,202.06,201.99,14.94773309]
[1753205774463,14.94773309,202.05,201.98,14.94773309]
[1753205774785,14.94773309,202.05,201.99,14.94773309]
[1753205774786,0.7,202.05,201.99,14.94773309]
[1753205774994,0.7,202.05,201.94,16.78468397]
[1753205775201,4.94975993,202.03,201.95,14.94773309]
[1753205775397,4.94975993,202.03,201.93,0.68]
[1753205775701,1.19480455,202.14,202.05,26.0]
[1753205775869,5.64720641,202.14,202.09,14.94773309]
[1753205776069,14.94773309,202.12,202.05,14.94773309]
[1753205776289,14.94773309,202.11,202.05,14.94773309]
[1753205776591,0.7,202.13,202.1,14.94773309]
[1753205776771,4.94720641,202.14,202.1,14.94773309]
[1753205777092,0.7,202.13,202.04,16.92684554]
[1753205777275,4.9475559,202.12,202.09,14.94773309]
[1753205777478,4.94728115,202.14,202.11,14.94773309]
[1753205777674,0.49480455,202.2,202.13,14.94773309]
[1753205777987,32.75213209,202.2,202.13,14.94773309]
[1753205778195,4.94559841,202.2,202.14,14.94773309]
[1753205781002,0.49480455,202.21,202.17,14.94773309]
[1753205781311,4.94364247,202.28,202.2,31.73241706]
[1753205781616,4.94364247,202.28,202.25,14.94773309]
[1753205781811,5.65364247,202.28,202.25,14.94773309]
[1753205782411,5.65364247,202.28,202.26,14.94773309]
[1753205782612,4.94333798,202.3,202.26,14.94773309]
[1753205782814,4.94240857,202.34,202.29,14.94773309]
[1753205782974,4.94240857,202.34,202.32,14.94773309]
[1753205783305,14.94773309,202.34,202.28,14.94773309]
[1753205783505,0.71,202.33,202.28,14.94773309]
[1753205783709,17.29590828,202.36,202.31,14.94773309]
[1753205783925,14.94773309,202.34,202.28,14.94773309]
[1753205784219,15.44253764,202.34,202.28,14.94773309]
[1753205784432,15.44253764,202.34,202.23,51.51468397]
[1753205784579,0.49480455,202.34,202.28,14.94773309]
[1753205784782,15.44253764,202.34,202.28,14.94773309]
[1753205785087,4.94168808,202.36,202.33,14.94773309]
[1753205785391,4.94119972,202.38,202.34,14.94773309]
[1753205785597,5.65119972,202.38,202.34,14.94773309]
[1753205785801,4.94119972,202.38,202.29,0.66]
[1753205785993,4.94119972,202.38,202.33,14.94773309]
[1753205786193,5.65119972,202.38,202.33,14.94773309]
[1753205786610,0.2,202.39,202.37,14.94773309]
[1753205786792,0.2,202.39,202.38,14.94773309]
[1753205787592,0.2,202.39,202.38,17.44468397]
[1753205787799,0.2,202.39,202.35,55.76]
[1753205787800,0.2,202.39,202.37,29.76]
[1753205788007,0.2,202.39,202.38,14.94773309]
[1753205788628,0.2,202.39,202.38,15.60773309]
[1753205788937,0.49480455,202.53,202.42,46.68684554]
[1753205789223,4.93705257,202.55,202.46,16.78468397]
[1753205789534,4.93705257,202.55,202.51,14.94773309]
[1753205789825,5.64680806,202.57,202.46,47.69860869]
[1753205790029,4.93680806,202.57,202.52,14.94773309]
[1753205790321,4.93680806,202.57,202.52,0.66]
[1753205790529,4.93680806,202.57,202.52,14.94773309]
[1753205790696,4.93680806,202.57,202.53,0.66]
[1753205790899,4.93583415,202.6,202.54,14.94773309]
[1753205791096,4.93583415,202.6,202.53,0.66]
[1753205791322,4.93559054,202.61,202.56,14.94773309]
[1753205791527,14.94773309,202.59,202.49,16.78468397]
[1753205791734,1.20480455,202.6,202.52,14.94773309]
[1753205791946,14.94773309,202.59,202.52,14.94773309]
[1753205792097,14.94773309,202.53,202.45,42.78468397]
[1753205792293,0.49480455,202.6,202.52,14.94773309]
[1753205792530,0.49480455,202.6,202.44,32.23677748]
[1753205792531,4.93559054,202.61,202.59,14.94773309]
[1753205792726,12.33708505,202.65,202.54,16.78468397]
[1753205792727,4.93461633,202.65,202.6,14.94773309]
[1753205793027,4.93461633,202.65,202.61,0.66]
[1753205793232,4.93388592,202.68,202.64,14.94773309]
[1753205793395,4.9336425,202.69,202.62,0.66]
[1753205793600,4.9336425,202.69,202.65,14.94773309]
[1753205793796,14.94773309,202.66,202.59,14.94773309]
[1753205793999,27.20480455,202.65,202.57,14.94773309]
[1753205794212,0.71,202.64,202.55,26.0]
[1753205794436,15.65773309,202.64,202.58,14.94773309]
[1753205794619,0.71,202.64,202.52,43.44468397]
[1753205794831,14.94773309,202.61,202.52,26.66]
[1753205795014,14.94773309,202.58,202.51,14.94773309]
[1753205795215,1.20480455,202.57,202.49,14.94773309]
[1753205795535,4.93680884,202.56,202.51,14.94773309]
[1753205796113,19.88454193,202.56,202.48,0.66]
[1753205796328,19.88454193,202.56,202.52,14.94773309]
[1753205796329,4.93680884,202.56,202.52,14.94773309]
[1753205796833,4.93655685,202.58,202.54,14.94773309]
[1753205797011,4.93583415,202.6,202.56,14.94773309]
[1753205797412,4.93559054,202.61,202.57,14.94773309]
[1753205797623,4.93532806,202.63,202.59,14.94773309]
[1753205797805,5.64532806,202.63,202.58,14.94773309]
[1753205798007,4.93437284,202.66,202.61,14.94773309]
[1753205798206,19.88210593,202.66,202.58,0.66]
[1753205798428,5.64437284,202.66,202.6,14.94773309]
[1753205798645,4.93437284,202.66,202.62,14.94773309]
[1753205798803,4.93437284,202.66,202.61,14.94773309]
[1753205799003,0.71,202.65,202.6,14.94773309]
[1753205799310,4.93339911,202.7,202.64,14.94773309]
[1753205799514,4.93313518,202.72,202.69,14.94773309]
[1753205799751,4.93313518,202.72,202.64,0.66]
[1753205799752,4.93218249,202.75,202.65,26.0]
[1753205799921,4.93218249,202.75,202.69,14.94773309]
[1753205799922,32.2103718,202.75,202.69,14.94773309]
[1753205800110,17.75744326,202.75,202.68,14.94773309]
[1753205800311,5.42698704,202.75,202.69,14.94773309]
[1753205800511,4.93218249,202.75,202.66,0.49343728]
[1753205800713,4.93218249,202.75,202.71,14.94773309]
[1753205801326,4.93218249,202.75,202.67,0.66]
[1753205801522,4.93169601,202.77,202.73,14.94773309]
[1753205801735,4.93169601,202.77,202.68,16.92684554]
[1753205801932,4.93169601,202.77,202.73,14.94773309]
[1753205802140,4.93169601,202.77,202.68,0.14216157]
[1753205802313,0.71,202.76,202.75,14.94773309]
[1753205802514,0.71,202.84,202.69,0.49336425]
[1753205802813,0.71,202.84,202.68,55.59]
[1753205802814,14.94773309,202.82,202.73,26.66]
[1753205803144,0.71,202.81,202.76,14.94773309]
[1753205803545,14.94773309,202.79,202.7,0.66]
[1753205803751,17.98948852,202.78,202.66,0.66]
[1753205803935,14.94773309,202.77,202.71,14.94773309]
[1753205804144,0.71,202.78,202.73,14.94773309]
[1753205804457,0.71,202.83,202.77,14.94773309]
[1753205804741,4.93023714,202.83,202.75,0.14216157]
[1753205804919,4.93023714,202.83,202.76,0.49319392]
[1753205805115,4.93023714,202.83,202.8,14.94773309]
[1753205805515,4.92999408,202.84,202.8,14.94773309]
[1753205805716,4.92950171,202.87,202.81,0.66]
[1753205805915,4.92950171,202.87,202.84,14.94773309]
[1753205806148,16.15253764,202.86,202.78,26.0]
[1753205806322,14.94773309,202.82,202.76,14.94773309]
[1753205806529,14.94773309,202.81,202.74,14.94773309]
[1753205806715,14.94773309,202.81,202.68,0.66]
[1753205806716,14.94773309,202.78,202.68,0.66]
[1753205806918,14.94773309,202.78,202.71,14.94773309]
[1753205807147,0.49480455,202.79,202.71,14.94773309]
[1753205807317,14.94773309,202.78,202.72,14.94773309]
[1753205807519,19.8794291,202.77,202.7,14.94773309]
[1753205807740,0.49480455,202.76,202.68,14.94773309]
[1753205808058,0.49480455,202.76,202.53,0.49375401]
[1753205808059,14.94773309,202.69,202.61,14.94773309]
[1753205808349,14.94773309,202.67,202.6,14.94773309]
[1753205808518,10.0,202.76,202.66,14.94773309]
[1753205808519,0.49480455,202.75,202.66,14.94773309]
[1753205808721,14.94773309,202.72,202.67,0.68]
[1753205808919,14.94773309,202.7,202.56,4.93679823]
[1753205809138,14.94773309,202.66,202.59,14.94773309]
[1753205809445,14.94773309,202.63,202.53,0.68]
[1753205809645,4.93583415,202.6,202.55,14.94773309]
[1753205809848,14.94773309,202.58,202.51,14.94773309]
[1753205810047,14.94773309,202.56,202.47,0.68]
[1753205810236,14.94773309,202.57,202.51,14.94773309]
[1753205810442,14.94773309,202.57,202.5,14.94773309]
[1753205810619,14.94773309,202.55,202.49,14.94773309]
[1753205811038,0.68,202.56,202.5,14.94773309]
[1753205811254,20.56356724,202.6,202.54,14.94773309]
[1753205811454,14.94773309,202.57,202.5,14.94773309]
[1753205811663,14.94773309,202.54,202.45,0.68]
[1753205811833,14.94773309,202.51,202.44,14.94773309]
[1753205812036,16.78468397,202.55,202.41,0.68]
[1753205812037,1.17480455,202.5,202.41,0.68]
[1753205812342,14.94773309,202.49,202.42,14.94773309]
[1753205812549,14.94773309,202.49,202.43,14.94773309]
[1753205812965,1.17480455,202.5,202.43,14.94773309]
[1753205812966,0.68,202.5,202.43,14.94773309]
[1753205813263,15.62773309,202.5,202.43,14.94773309]
[1753205813565,4.93875938,202.48,202.43,14.94773309]
[1753205814133,0.49480455,202.51,202.44,14.94773309]
[1753205814331,0.49480455,202.57,202.5,14.94773309]
[1753205814533,0.68,202.58,202.47,26.0]
[1753205814734,0.49480455,202.57,202.52,14.94773309]
[1753205814970,1.17480455,202.57,202.52,14.94773309]
[1753205815158,16.78468397,202.62,202.54,14.94773309]
[1753205815159,0.68,202.59,202.54,14.94773309]
[1753205815332,20.56283648,202.63,202.56,14.94773309]
[1753205815533,5.61510339,202.63,202.53,0.68]
[1753205815738,20.56283648,202.63,202.57,14.94773309]
[1753205815938,14.94773309,202.59,202.53,14.94773309]
[1753205816152,14.94773309,202.59,202.52,14.94773309]
[1753205816439,14.94773309,202.58,202.52,14.94773309]
[1753205816643,15.62773309,202.59,202.52,14.94773309]
[1753205816979,15.62773309,202.59,202.5,4.93820834]
[1753205817143,15.62773309,202.59,202.53,14.94773309]
[1753205817474,15.62773309,202.59,202.5,4.93820834]
[1753205817475,0.49480455,202.62,202.56,14.94773309]
[1753205817640,4.93559054,202.61,202.54,14.94773309]
[1753205817837,14.94773309,202.56,202.47,0.68]
[1753205818037,0.68,202.59,202.54,14.94773309]
[1753205818280,0.68,202.59,202.55,14.94773309]
[1753205818451,0.49480455,202.6,202.56,14.94773309]
[1753205818652,4.93559054,202.61,202.56,14.94773309]
[1753205818962,26.0,202.64,202.58,14.94773309]
[1753205819160,26.0,202.64,202.52,0.68]
[1753205819161,14.94773309,202.61,202.52,26.0]
[1753205819484,1.17480455,202.63,202.56,14.94773309]
[1753205819669,20.56305932,202.63,202.57,14.94773309]
[1753205820184,0.49480455,202.62,202.52,26.0]
[1753205820400,14.94773309,202.58,202.49,0.68]
[1753205820590,14.94773309,202.5,202.4,4.94071146]
[1753205820888,14.94773309,202.5,202.39,0.03]
[1753205820889,14.94773309,202.44,202.39,0.03]
[1753205821055,14.94773309,202.46,202.39,14.97773309]
[1753205821254,14.94773309,202.46,202.4,14.94773309]
[1753205821449,14.94773309,202.46,202.39,15.65773309]
[1753205821675,4.94022329,202.42,202.39,0.03]
[1753205821889,0.49480455,202.45,202.41,14.94773309]
[1753205822051,26.0,202.49,202.39,0.03]
[1753205822250,14.94773309,202.43,202.39,0.03]
[1753205822493,14.94773309,202.4,202.39,0.03]
[1753205822788,0.49480455,202.44,202.39,0.03]
[1753205822953,14.94773309,202.49,202.43,14.94773309]
[1753205823160,1.17480455,202.5,202.45,14.94773309]
[1753205823466,15.44253764,202.5,202.44,14.94773309]
[1753205823791,12.34262534,202.56,202.49,14.94773309]
[1753205823792,14.94773309,202.56,202.49,14.94773309]
[1753205824077,14.94773309,202.53,202.47,14.94773309]
[1753205824279,15.62773309,202.55,202.49,14.94773309]
[1753205824490,0.68,202.55,202.49,14.94773309]
[1753205824854,26.0,202.54,202.49,14.94773309]
[1753205825256,14.94773309,202.51,202.45,14.94773309]
[1753205825464,14.94773309,202.52,202.45,14.94773309]
[1753205825814,4.93754011,202.53,202.44,5.61965536]
[1753205826016,4.93754011,202.53,202.48,14.94773309]
[1753205826211,4.93754011,202.53,202.47,14.94773309]
[1753205826212,5.61754011,202.53,202.47,14.94773309]
[1753205826394,14.94773309,202.51,202.45,14.94773309]
[1753205826592,16.12253764,202.52,202.42,34.53019577]
[1753205826808,0.68,202.52,202.46,14.94773309]
[1753205827315,0.68,202.52,202.47,14.94773309]
[1753205827618,4.93730845,202.54,202.51,14.94773309]
[1753205827793,16.12253764,202.53,202.44,56.78]
[1753205827978,16.12253764,202.53,202.47,14.94773309]
[1753205827979,0.68,202.53,202.47,14.94773309]
[1753205828180,5.43187951,202.55,202.49,14.94773309]
[1753205828485,14.94773309,202.53,202.46,14.94773309]
[1753205828802,14.94773309,202.47,202.39,56.81]
[1753205829111,0.68,202.5,202.45,14.94773309]
[1753205829523,0.68,202.5,202.46,14.94773309]
[1753205829691,4.93924725,202.46,202.39,0.03]
[1753205829893,14.94773309,202.45,202.39,0.03]
[1753205830198,14.94773309,202.44,202.39,0.03]
[1753205830399,14.94773309,202.45,202.39,14.97773309]
[1753205830702,14.94773309,202.44,202.4,29.59]
[1753205831090,14.94773309,202.42,202.39,0.03]
[1753205831394,14.94773309,202.44,202.39,0.03]
[1753205831623,0.68,202.46,202.41,14.94773309]
[1753205831827,15.62773309,202.5,202.44,14.94773309]
[1753205832112,0.06,202.5,202.46,14.94773309]
[1753205832293,15.00773309,202.5,202.44,14.94773309]
[1753205832500,0.68,202.49,202.44,14.94773309]
[1753205832699,1.17480455,202.49,202.42,29.59]
[1753205832895,15.62773309,202.49,202.43,14.94773309]
[1753205833102,0.68,202.49,202.44,14.94773309]
[1753205833711,15.62773309,202.49,202.43,14.94773309]
[1753205833912,15.62773309,202.49,202.42,44.53773309]
[1753205833913,19.88649247,202.48,202.42,44.53773309]
[1753205834291,14.94773309,202.43,202.39,0.03]
[1753205834697,14.94773309,202.42,202.39,0.03]
[1753205834920,15.62773309,202.42,202.39,0.03]
[1753205835216,15.62773309,202.41,202.39,0.03]
[1753205835518,16.12253764,202.4,202.39,0.03]
[1753205836023,14.94773309,202.41,202.39,0.03]
[1753205836186,14.94773309,202.45,202.39,0.03]
[1753205836387,0.49480455,202.45,202.39,14.97773309]
[1753205836593,14.94773309,202.4,202.39,0.03]
[1753205836891,14.94773309,202.4,202.34,0.03]
[1753205836892,0.14216157,202.38,202.34,0.03]
[1753205837100,15.08989466,202.35,202.34,0.03]
[1753205837291,16.28469921,202.35,202.34,1e-08]
[1753205837493,0.14216157,202.34,202.3,0.03]
[1753205837699,14.94773309,202.31,202.3,0.03]
[1753205837917,20.59064248,202.31,202.3,0.03]
[1753205838315,37.51748802,202.31,202.3,0.03]
[1753205838503,0.14216157,202.29,202.18,0.1]
[1753205838824,14.94773309,202.24,202.18,15.04773309]
[1753205839121,15.64773309,202.26,202.2,14.94773309]
[1753205839324,0.49480455,202.28,202.22,14.94773309]